Workbook

Sheet 4 класс
B1: 4 класс Русский язык (школьный этап)
B2: ФАМИЛИЯ Имя и Отчество участника | C2: школа | D2: баллы | E2: % | F2: ФИО учителя | G2: макс кол-во баллов | H2: 37
A3: участник | B3: Павлова Лилия Артемовна | C3: МБОУ "Вохтомская ОШ" | D3: 13 | E3: =D3*100/37 -> 35 | F3: Кишкина И.Н.
A4: участник | B4: Красильников Владислав Юрьевич | C4: МБОУ "Вохтомская ОШ" | D4: 11 | E4: =D4*100/37 -> 30 | F4: Кишкина И.Н.
A5: участник | B5: Кузнецов Арсений Игоревич | C5: МБОУ "Вохтомская ОШ" | D5: 10 | E5: 27 | F5: Кишкина И.Н.
A6: участник | B6: Митина Милена Владимировна | C6: МБОУ "Вохтомская ОШ" | D6: 9 | E6: 24 | F6: Кишкина И.Н.
A7: участник | B7: Дедков Матвей Николаевич | C7: МБОУ "Вохтомская ОШ" | D7: 5 | E7: 14 | F7: Кишкина И.Н.
A8: участник | B8: Сергеева София Ивановна | C8: МБОУ "Вохтомская ОШ" | D8: 5 | E8: 14 | F8: Кишкина И.Н.
A9: участник | B9: Пронин Дмитрий Алексеевич | C9: МБОУ "Вохтомскя ОШ" СП "Волошская ОШ" | D9: 9 | E9: 24 | F9: Яковлева М.П.
A10: участник | B10: Катышева Виктория Геннадьевна | C10: МБОУ "Вохтомскя ОШ" СП "Волошская ОШ" | D10: 6 | E10: 16 | F10: Яковлева М.П.
A11: участник | B11: Шубина Валерия Александровна | C11: МБОУ "Вохтомскя ОШ" СП "Волошская ОШ" | D11: 4 | E11: 11 | F11: Яковлева М.П.
A12: участник | B12: Андриянова Милана Андреевна | C12: МБОУ "Ерцевская СШ им. С.И. Бочарова" | D12: 13 | E12: 35 | F12: Голубева Т.П.
A13: участник | B13: Акуленко Вероника Игоревна | C13: МБОУ "Ерцевская СШ им. С.И. Бочарова" | D13: 7 | E13: 19 | F13: Голубева Т.П.
A14: участник | B14: Рафиева София Зафаровна | C14: МБОУ "Ерцевская СШ им. С.И. Бочарова" | D14: 5 | E14: 14 | F14: Голубева Т.П.
A15: участник | B15: Семенов Матвей Игоревич | C15: МБОУ "Коношеозерская СШ им. В.А.Корытова" | D15: 9 | E15: 24 | F15: Егорова Н.В.
A16: участник | B16: Латкин Александр Александрович | C16: МБОУ "Коношеозерская СШ им. В.А.Корытова" | D16: 8 | E16: 22 | F16: Егорова Н.В.
A17: участник | B17: Кичаков Артём Денисович | C17: МБОУ "Коношеозерская СШ им. В.А.Корытова" | D17: 7 | E17: 19 | F17: Егорова Н.В.
A18: участник | B18: Валов Ярослав Васильевич | C18: МБОУ "Коношеозерская СШ им. В.А.Корытова" | D18: 3 | E18: 8 | F18: Егорова Н.В.
A19: участник | B19: Юдина Марьяна Алексеевна | C19: МБОУ "Коношеозерская СШ им. В.А.Корытова" | D19: 3 | E19: 8 | F19: Егорова Н.В.
A20: участник | B20: Синксис Дмитрий Игоревич | C20: МБОУ "Коношеозерская СШ им. В.А.Корытова" | D20: 2 | E20: 5 | F20: Егорова Н.В.
A21: участник | B21: Титова Ксения Николаевна | C21: МБОУ "Коношская СШ имени Н.П. Лавёрова" | D21: 14 | E21: 38 | F21: Руденко А.Е.
A22: участник | B22: Курдюкова Эвелина Дмитриевна | C22: МБОУ "Коношская СШ имени Н.П. Лавёрова" | D22: 14 | E22: 38 | F22: Поздеева Л.Б.
A23: участник | B23: Верещагина Валерия Александровна | C23: МБОУ "Коношская СШ имени Н.П. Лавёрова" | D23: 14 | E23: 38 | F23: Кузнецова М.С.
A24: участник | B24: Гореликова Анастасия Витальевна | C24: МБОУ "Коношская СШ имени Н.П. Лавёрова" | D24: 12 | E24: 32 | F24: Руденко А.Е.
A25: участник | B25: Симоненко Иван Викторович | C25: МБОУ "Коношская СШ имени Н.П. Лавёрова" | D25: 12 | E25: 32 | F25: Поздеева Л.Б.
A26: участник | B26: Ручьев Денис Дмитриевич | C26: МБОУ "Коношская СШ имени Н.П. Лавёрова" | D26: 11 | E26: 30 | F26: Руденко А.Е.
A27: участник | B27: Пантелеева Татьяна Александровна | C27: МБОУ "Коношская СШ имени Н.П. Лавёрова" | D27: 10 | E27: 27 | F27: Серова Л.А.
A28: участник | B28: Калинина Мария Александровна | C28: МБОУ "Коношская СШ имени Н.П. Лавёрова" | D28: 9 | E28: 24 | F28: Поздеева Л.Б.
A29: участник | B29: Гладкова Варвара Сергеевна | C29: МБОУ "Коношская СШ имени Н.П. Лавёрова" | D29: 9 | E29: 24 | F29: Серова Л.А.
A30: участник | B30: Царук Виктория Денисовна | C30: МБОУ "Коношская СШ имени Н.П. Лавёрова" | D30: 8 | E30: 22 | F30: Кузнецова М.С.
A31: участник | B31: Вохтомин Андрей Михайлович | C31: МБОУ "Коношская СШ имени Н.П. Лавёрова" | D31: 8 | E31: 22 | F31: Серова Л.А.
A32: участник | B32: Коробкова Кира Максимовна | C32: МБОУ "Коношская СШ имени Н.П. Лавёрова" | D32: 7 | E32: 19 | F32: Поздеева Л.Б.
A33: участник | B33: Мошкин Артём Анатольевич | C33: МБОУ "Коношская СШ имени Н.П. Лавёрова" | D33: 7 | E33: 19 | F33: Кузнецова М.С.
A34: участник | B34: Шубина Мария Евгеньевна | C34: МБОУ "Коношская СШ имени Н.П. Лавёрова" | D34: 6 | E34: 16 | F34: Серова Л.А.
A35: участник | B35: Ожигин Алексей Евгеньевич | C35: МБОУ "Коношская СШ имени Н.П. Лавёрова" | D35: 5 | E35: 14 | F35: Поздеева Л.Б.
A36: участник | B36: Боброва Дарья Александровна | C36: МБОУ "Коношская СШ имени Н.П. Лавёрова" | D36: 5 | E36: 14 | F36: Серова Л.А.
A37: участник | B37: Шутеев Матвей Сергеевич | C37: МБОУ "Коношская СШ имени Н.П. Лавёрова" | D37: 1 | E37: 3 | F37: Кузнецова М.С.
A38: участник | B38: Попков Евгений Васильевич | C38: МБОУ "Лесозаводская СШ" | D38: 15 | E38: 41 | F38: Головина Ольга Васильевна
A39: участник | B39: Луговец Елизавета Алексеевна | C39: МБОУ "Лесозаводская СШ" | D39: 9.5 | E39: 26 | F39: Головина Ольга Васильевна
A40: участник | B40: Коптяев Всеволод Андреевич | C40: МБОУ "Лесозаводская СШ" | D40: 7 | E40: 19 | F40: Головина Ольга Васильевна
A41: участник | B41: Пичугина Дарья Николаевна | C41: МБОУ "Лесозаводская СШ" | D41: 7 | E41: 19 | F41: Денисова Алевтина Владимировна
A42: участник | B42: Пискунова Таисия Ильинична | C42: МБОУ "Лесозаводская СШ" | D42: 6 | E42: 16 | F42: Денисова Алевтина Владимировна
A43: участник | B43: Савчук Ульяна Степановна | C43: МБОУ "Лесозаводская СШ" | D43: 6 | E43: 16 | F43: Денисова Алевтина Владимировна
A44: участник | B44: Ускова Анастасия Александровна | C44: МБОУ "Лесозаводская СШ" | D44: 6 | E44: 16 | F44: Денисова Алевтина Владимировна
A45: участник | B45: Вербицкая Надежда Анатольевна | C45: МБОУ "Лесозаводская СШ" | D45: 4 | E45: 11 | F45: Денисова Алевтина Владимировна
A46: участник | B46: Дмитриевский Николай Евгеньевич | C46: МБОУ "Лесозаводская СШ" | D46: 4 | E46: 11 | F46: Денисова Алевтина Владимировна
A47: участник | B47: Куликова Эвелина Алексеевна | C47: МБОУ "Лесозаводская СШ" | D47: 3 | E47: 8 | F47: Денисова Алевтина Владимировна
A48: участник | B48: Безрукова Мария Николаевна | C48: МБОУ "Лесозаводская СШ" | D48: 2 | E48: 5 | F48: Головина Ольга Васильевна
A49: участник | B49: Хватов Вадим Андреевич | C49: МБОУ "Подюжская СШ им. В.А. Абрамова" | D49: 10 | E49: 27 | F49: Вострякова Т.В.
A50: участник | B50: Хватов Вадим Андреевич | C50: МБОУ "Подюжская СШ им. В.А. Абрамова" | D50: 10 | E50: 27 | F50: Вострякова Т.В.
A51: участник | B51: Казаринова Олеся Игоревна | C51: МБОУ "Подюжская СШ им. В.А. Абрамова" | D51: 8 | E51: 22 | F51: Вострякова Т.В.
A52: участник | B52: Казаринова Олеся Игоревна | C52: МБОУ "Подюжская СШ им. В.А. Абрамова" | D52: 8 | E52: 22 | F52: Вострякова Т.В.
A53: участник | B53: Казаринов Назар Игоревич | C53: МБОУ "Подюжская СШ им. В.А. Абрамова" | D53: 7 | E53: 19 | F53: Вострякова Т.В.
A54: участник | B54: Васильев Матвей Михайлович | C54: МБОУ "Подюжская СШ им. В.А. Абрамова" | D54: 7 | E54: 19 | F54: Пихтина Е.В.
A55: участник | B55: Казаринов Назар Игоревич | C55: МБОУ "Подюжская СШ им. В.А. Абрамова" | D55: 7 | E55: 19 | F55: Вострякова Т.В.
A56: участник | B56: Васильев Матвей Михайлович | C56: МБОУ "Подюжская СШ им. В.А. Абрамова" | D56: 7 | E56: 19 | F56: Пихтина Е.В.
A57: участник | B57: Ломака Максим Дмитриевич | C57: МБОУ "Подюжская СШ им. В.А. Абрамова" | D57: 4 | E57: 11 | F57: Пихтина Е.В.
A58: участник | B58: Ломака Максим Дмитриевич | C58: МБОУ "Подюжская СШ им. В.А. Абрамова" | D58: 4 | E58: 11 | F58: Пихтина Е.В.
A59: участник | B59: Серебрянников Григорий Олегович | C59: МБОУ "Подюжская СШ им. В.А. Абрамова" | D59: 3 | E59: 8 | F59: Пихтина Е.В.
A60: участник | B60: Серебрянников Григорий Олегович | C60: МБОУ "Подюжская СШ им. В.А. Абрамова" | D60: 3 | E60: 8 | F60: Пихтина Е.В.
A61: участник | B61: Вохтомин Родион Дмитриевич | C61: МБОУ "Подюжская СШ им. В.А. Абрамова" | D61: 1 | E61: 3 | F61: Вострякова Т.В. | G61: =D -> 
A62: участник | B62: Вохтомин Родион Дмитриевич | C62: МБОУ "Подюжская СШ им. В.А. Абрамова" | D62: 1 | E62: 3 | F62: Вострякова Т.В.
A63: участник | B63: Малышев Матвей Максимович | C63: МБОУ "Подюжская СШ им. В.А. Абрамова" | D63: 0 | E63: 0 | F63: Вострякова Т.В.
A64: участник | B64: Малышев Матвей Максимович | C64: МБОУ "Подюжская СШ им. В.А. Абрамова" | D64: 0 | E64: 0 | F64: Вострякова Т.В.
A65: участник | B65: Гришечкина Анастасия Денисовна | C65: МБОУ "Тавреньгская Ш" | D65: 12 | E65: 32 | F65: Попова Н. В.
A66: участник | B66: Ушакова Александра Евгеньевна | C66: МБОУ "Тавреньгская Ш" | D66: 7 | E66: 19 | F66: Попова Н. В.

Sheet 5 класс
B1: 5 класс Русский язык (школьный этап)
B2: ФАМИЛИЯ Имя и Отчество участника | C2: школа | D2: баллы | E2: % | F2: ФИО учителя | G2: макс кол-во баллов | H2: 73
A3: участник | B3: Кишкина Дарья Олеговна | C3: МБОУ "Вохтомская ОШ" | D3: 26 | E3: =D3*100/73 -> 36 | F3: Рудакова О.М.
A4: участник | B4: Яковлева Дарья Юрьевна | C4: МБОУ "Вохтомская ОШ" СП "Волошская ОШ" | D4: 31 | E4: 42 | F4: Иванова Е.Н.
A5: призер | B5: Тарасов Георгий Александрович | C5: МБОУ "Ерцевская СШ им. С.И. Бочарова" | D5: 36 | E5: 49 | F5: Черноусова Г.Д.
A6: участник | B6: Бормотова Маргарита Владимировна | C6: МБОУ "Ерцевская СШ им. С.И. Бочарова" | D6: 24 | E6: 33 | F6: Черноусова Г.Д.
A7: участник | B7: Горовенко Варвара Сергеевна | C7: МБОУ "Ерцевская СШ им. С.И. Бочарова" | D7: 21 | E7: 29 | F7: Черноусова Г.Д.
A8: участник | B8: Жамков Савва Алексеевич | C8: МБОУ "Ерцевская СШ им. С.И. Бочарова" | D8: 19 | E8: 26 | F8: Черноусова Г.Д.
A9: участник | B9: Шатаев Семён Александрович | C9: МБОУ "Ерцевская СШ им. С.И. Бочарова" | D9: 19 | E9: 26 | F9: Черноусова Г.Д.
A10: участник | B10: Черепанова Варвара Андреевна | C10: МБОУ "Ерцевская СШ им. С.И. Бочарова" | D10: 18 | E10: 25 | F10: Черноусова Г.Д.
A11: участник | B11: Головкова Софья Андреевна | C11: МБОУ "Ерцевская СШ им. С.И. Бочарова" | D11: 15 | E11: 21 | F11: Черноусова Г.Д.
A12: участник | B12: Козлов Станислав Викторович | C12: МБОУ "Климовская СШ" | D12: 30 | E12: 41 | F12: Пателина Е.М.
A13: участник | B13: Бова Александра Анатольевна | C13: МБОУ "Коношеозерская СШ им. В.А.Корытова" | D13: 27 | E13: 37 | F13: Ефремычева Г.И.
A14: участник | B14: Гарунов Владимир Александрович | C14: МБОУ "Коношеозерская СШ им. В.А.Корытова" | D14: 22 | E14: 30 | F14: Ефремычева Г.И.
A15: участник | B15: Евдокимов Константин Александрович | C15: МБОУ "Коношеозерская СШ им. В.А.Корытова" | D15: 19 | E15: 26 | F15: Ефремычева Г.И.
A16: участник | B16: Бахвалова Елизавета Сергеевна | C16: МБОУ "Коношеозерская СШ им. В.А.Корытова" | D16: 16 | E16: 22 | F16: Ефремычева Г.И.
A17: участник | B17: Серков Марк Янович | C17: МБОУ "Коношеозерская СШ им. В.А.Корытова" | D17: 16 | E17: 22 | F17: Ефремычева Г.И.
A18: призер | B18: Архачёва Василиса Витальевна | C18: МБОУ "Коношская СШ имени Н.П. Лавёрова" | D18: 36 | E18: 49 | F18: Власова Г.В.
A19: призер | B19: Лукина Мария Алексеевна | C19: МБОУ "Коношская СШ имени Н.П. Лавёрова" | D19: 36 | E19: 49 | F19: Мерёжина Н.Н.
A20: призер | B20: Цеповяз Диана Александровна | C20: МБОУ "Коношская СШ имени Н.П. Лавёрова" | D20: 34 | E20: 47 | F20: Вилакова И.П.
A21: участник | B21: Власова Мария Игоревна | C21: МБОУ "Коношская СШ имени Н.П. Лавёрова" | D21: 29 | E21: 40 | F21: Мерёжина Н.Н.
A22: участник | B22: Кузнецова Софья Андреевна | C22: МБОУ "Коношская СШ имени Н.П. Лавёрова" | D22: 26 | E22: 36 | F22: Власова Г.В.
A23: участник | B23: Скурихина Кира Андреевна | C23: МБОУ "Коношская СШ имени Н.П. Лавёрова" | D23: 25 | E23: 34 | F23: Мерёжина Н.Н.
A24: участник | B24: Алеханов Савелий Александрович | C24: МБОУ "Коношская СШ имени Н.П. Лавёрова" | D24: 24 | E24: 33 | F24: Власова Г.В.
A25: участник | B25: Андреев Илья Алексеевич | C25: МБОУ "Коношская СШ имени Н.П. Лавёрова" | D25: 24 | E25: 33 | F25: Ершова Е.В.
A26: участник | B26: Букаева Таисия Дмитриевна | C26: МБОУ "Коношская СШ имени Н.П. Лавёрова" | D26: 21 | E26: 29 | F26: Ершова Е.В.
A27: участник | B27: Юрин Артур Сергеевич | C27: МБОУ "Коношская СШ имени Н.П. Лавёрова" | D27: 19 | E27: 26 | F27: Ершова Е.В.
A28: призер | B28: Пушкарёв Даниил Дмитриевич | C28: МБОУ "Лесозаводская СШ" | D28: 35 | E28: 48 | F28: Петрова Т.Н.
A29: участник | B29: Кукушкина Маргарита Валерьевна | C29: МБОУ "Лесозаводская СШ" | D29: 28 | E29: 38 | F29: Петрова Т.Н.
A30: участник | B30: Варганов Кирилл Андреевич | C30: МБОУ "Лесозаводская СШ" | D30: 27 | E30: 37 | F30: Дубонос С,Н.
A31: участник | B31: Усачёв Савелий Сергеевич | C31: МБОУ "Лесозаводская СШ" | D31: 25 | E31: 34 | F31: Петрова Т.Н.
A32: участник | B32: Жижикина Вероника Сергеевна | C32: МБОУ "Лесозаводская СШ" | D32: 22 | E32: 30 | F32: Петрова Т.Н.
A33: участник | B33: Ермолин Сергей Максимович | C33: МБОУ "Лесозаводская СШ" | D33: 19 | E33: 26 | F33: Петрова Т.Н.
A34: участник | B34: Левшинова Олеся Васильевна | C34: МБОУ "Лесозаводская СШ" | D34: 17 | E34: 23 | F34: Петрова Т.Н.
A35: участник | B35: Страшненков Никита Андреевич | C35: МБОУ "Подюжская СШ им. В.А. Абрамова" | D35: 29 | E35: 40 | F35: Шубина Е.В.
A36: участник | B36: Сархадова Мария Валерьевна | C36: МБОУ "Подюжская СШ им. В.А. Абрамова" | D36: 24 | E36: 33 | F36: Шубина Е.В.
A37: участник | B37: Березина Дарья Васильевна | C37: МБОУ "Подюжская СШ им. В.А. Абрамова" | D37: 22 | E37: 30 | F37: Шубина Е.В.
A38: участник | B38: Микрюков Сергей Михайлович | C38: МБОУ "Подюжская СШ им. В.А. Абрамова" | D38: 19 | E38: 26 | F38: Шубина Е.В.
A39: участник | B39: Рогозинский Ярослав Алексеевич | C39: МБОУ "Подюжская СШ им. В.А. Абрамова" | D39: 5 | E39: 7 | F39: Шубина Е.В.

Sheet 6 класс
B1: 6 класс Русский язык (школьный этап)
B2: ФАМИЛИЯ Имя и Отчество участника | C2: школа | D2: баллы | E2: % | F2: ФИО учителя | G2: макс кол-во баллов | H2: 79
A3: победитель | B3: Андриянова Дарья Константиновна | C3: МБОУ "Вохтомская ОШ" | D3: 48 | E3: =D3*100/79 -> 61 | F3: Гольцева О.М.
A4: призер | B4: Ивашов Роман Сергеевич | C4: МБОУ "Вохтомская ОШ" | D4: 37.5 | E4: 47 | F4: Гольцева О.М.
A5: участник | B5: Виноградов Алексей Владимирович | C5: МБОУ "Вохтомская ОШ" | D5: 30.5 | E5: 39 | F5: Гольцева О.М.
A6: участник | B6: Маурин Валерий Алексеевич | C6: МБОУ "Вохтомская ОШ" | D6: 27.5 | E6: 35 | F6: Гольцева О.М.
A7: участник | B7: Патюкова Дарина Александровна | C7: МБОУ "Вохтомская ОШ" | D7: 12 | E7: 15 | F7: Гольцева О.М.
A8: призер | B8: Яковлева Мария Александровна | C8: МБОУ "Вохтомская ОШ" СП "Волошская ОШ" | D8: 38 | E8: 48 | F8: Иванова Е.Н.
A9: призер | B9: Денисова Ева Евгеньевна | C9: МБОУ "Ерцевская СШ им. С.И. Бочарова" | D9: 35.5 | E9: 45 | F9: Каданцева Н.В.
A10: призер | B10: Сибирякова Полина Алексеевна | C10: МБОУ "Ерцевская СШ им. С.И. Бочарова" | D10: 35.5 | E10: 45 | F10: Каданцева Н.В.
A11: участник | B11: Золтов Дмитрий Николаевич | C11: МБОУ "Ерцевская СШ им. С.И. Бочарова" | D11: 33.5 | E11: 42 | F11: Каданцева Н.В.
A12: участник | B12: Колесникова Вера Евгеньевна | C12: МБОУ "Ерцевская СШ им. С.И. Бочарова" | D12: 33.5 | E12: 42 | F12: Каданцева Н.В.
A13: участник | B13: Юрьева Виктория Максимовна | C13: МБОУ "Ерцевская СШ им. С.И. Бочарова" | D13: 31 | E13: 39 | F13: Черноусова Г.Д.
A14: участник | B14: Фрикликас Егор Максимович | C14: МБОУ "Ерцевская СШ им. С.И. Бочарова" | D14: 30.5 | E14: 39 | F14: Черноусова Г.Д.
A15: участник | B15: Порсенкова Ксения Сергеевна | C15: МБОУ "Ерцевская СШ им. С.И. Бочарова" | D15: 30.5 | E15: 39 | F15: Каданцева Н.В.
A16: участник | B16: Соколова Марина Алексеевна | C16: МБОУ "Ерцевская СШ им. С.И. Бочарова" | D16: 23.5 | E16: 30 | F16: Черноусова Г.Д.
A17: участник | B17: Пальчиков Александр Андреевич | C17: МБОУ "Ерцевская СШ им. С.И. Бочарова" | D17: 23 | E17: 29 | F17: Черноусова Г.Д.
A18: участник | B18: Рыжков Артём Алексеевич | C18: МБОУ "Ерцевская СШ им. С.И. Бочарова" | D18: 22.5 | E18: 28 | F18: Черноусова Г.Д.
A19: участник | B19: Шахова Алина Алексеевна | C19: МБОУ "Климовская СШ" | D19: 18 | E19: 23 | F19: Пателина Е.М.
A20: победитель | B20: Башкирев Алексей Николаевич | C20: МБОУ "Коношеозерская СШ им. В.А.Корытова" | D20: 50.5 | E20: 64 | F20: Ионина О.А.
A21: участник | B21: Егоров Павел Александрович | C21: МБОУ "Коношеозерская СШ им. В.А.Корытова" | D21: 21 | E21: 27 | F21: Ионина О.А.
A22: участник | B22: Пирожкин Павел Андреевич | C22: МБОУ "Коношеозерская СШ им. В.А.Корытова" | D22: 20 | E22: 25 | F22: Ионина О.А.
A23: участник | B23: Лобачева Арина Дмитриевна | C23: МБОУ "Коношеозерская СШ им. В.А.Корытова" | D23: 18 | E23: 23 | F23: Ионина О.А.
A24: участник | B24: Павлова Кристина Николаевна | C24: МБОУ "Коношеозерская СШ им. В.А.Корытова" | D24: 14 | E24: 18 | F24: Ионина О.А.
A25: участник | B25: Аронова Ксения Евгеньевна | C25: МБОУ "Коношеозерская СШ им. В.А.Корытова" | D25: 9.5 | E25: 12 | F25: Ионина О.А.
A26: участник | B26: Тарасов Даниил Николаевич | C26: МБОУ "Коношеозерская СШ им. В.А.Корытова" | D26: 8.5 | E26: 11 | F26: Ионина О.А.
A27: победитель | B27: Дементьева Владислава Антоновна | C27: МБОУ "Коношская СШ имени Н.П. Лавёрова" | D27: 47.5 | E27: 60 | F27: Ершова Е.В.
A28: участник | B28: Захарова Полина Владиславовна | C28: МБОУ "Коношская СШ имени Н.П. Лавёрова" | D28: 33 | E28: 42 | F28: Пальчикова А.А
A29: участник | B29: Пузина Виктория Валерьевна | C29: МБОУ "Коношская СШ имени Н.П. Лавёрова" | D29: 32 | E29: 41 | F29: Ершова Е.В.
A30: участник | B30: Лукаш Анна Павловна | C30: МБОУ "Коношская СШ имени Н.П. Лавёрова" | D30: 30.5 | E30: 39 | F30: Пальчикова А.А
A31: участник | B31: Писарев Матвей Степанович | C31: МБОУ "Коношская СШ имени Н.П. Лавёрова" | D31: 26 | E31: 33 | F31: Ершова Е.В.
A32: участник | B32: Ананьев Данил Андреевич | C32: МБОУ "Коношская СШ имени Н.П. Лавёрова" | D32: 24 | E32: 30 | F32: Пальчикова А.А.
A33: участник | B33: Малозёмова Елизавета Викторовна | C33: МБОУ "Коношская СШ имени Н.П. Лавёрова" | D33: 23.5 | E33: 30 | F33: Пальчикова А.А.
A34: участник | B34: Афанасьев Максим Николаевич | C34: МБОУ "Коношская СШ имени Н.П. Лавёрова" | D34: 22 | E34: 28 | F34: Пальчикова А.А
A35: участник | B35: Ершова Дарья Евгеньевна | C35: МБОУ "Коношская СШ имени Н.П. Лавёрова" | D35: 18.5 | E35: 23 | F35: Пальчикова А.А.
A36: участник | B36: Оскаленко Александр Максимович | C36: МБОУ "Коношская СШ имени Н.П. Лавёрова" | D36: 18.5 | E36: 23 | F36: Ершова Е.В.
A37: участник | B37: Лукаш Татьяна Павловна | C37: МБОУ "Коношская СШ имени Н.П. Лавёрова" | D37: 15 | E37: 19 | F37: Пальчикова А.А
A38: участник | B38: Черепанова Ульяна Сергеевна | C38: МБОУ "Коношская СШ имени Н.П. Лавёрова" | D38: 13 | E38: 16 | F38: Ершова Е.В.
A39: участник | B39: Гергедава Анастасия Кахаевна | C39: МБОУ "Коношская СШ имени Н.П. Лавёрова" | D39: 11 | E39: 14 | F39: Комотёсова Н.Н.
A40: участник | B40: Клепикова Валерия Артёмовна | C40: МБОУ "Коношская СШ имени Н.П. Лавёрова" | D40: 8.5 | E40: 11 | F40: Пальчикова А.А.
A41: победитель | B41: Лапочкина Арина Александровна | C41: МБОУ "Лесозаводская СШ" | D41: 39.5 | E41: 50 | F41: Ткаченко А.Н.
A42: участник | B42: Виткова Дарья Сергеевна | C42: МБОУ "Лесозаводская СШ" | D42: 24 | E42: 30 | F42: Ткаченко А.Н.
A43: участник | B43: Гольцева Александра Андреевна | C43: МБОУ "Лесозаводская СШ" | D43: 24 | E43: 30 | F43: Ткаченко А.Н.
A44: участник | B44: Плотникова Полина Андреевна | C44: МБОУ "Лесозаводская СШ" | D44: 23 | E44: 29 | F44: Ткаченко А.Н.
A45: участник | B45: Кожемякина Яна Анатольевна | C45: МБОУ "Лесозаводская СШ" | D45: 16.5 | E45: 21 | F45: Ткаченко А.Н.
A46: участник | B46: Стоянова Кристина Игоревна | C46: МБОУ "Подюжская СШ им. В.А. Абрамова" | D46: 33.5 | E46: 42 | F46: Шубина Е.В.
A47: участник | B47: Юсупмурзина Полина Юрьевна | C47: МБОУ "Подюжская СШ им. В.А. Абрамова" | D47: 31 | E47: 39 | F47: Шубина Е.В.
A48: участник | B48: Порохина Наталья Сергеевна | C48: МБОУ "Подюжская СШ им. В.А. Абрамова" | D48: 24 | E48: 30 | F48: Шубина Е.В.
A49: участник | E49: 0

Sheet 7 класс
B1: 7 класс Русский язык (школьный этап) | F1: макс кол-во баллов | H1: 48
B2: ФАМИЛИЯ Имя и Отчество участника | C2: школа | D2: баллы | E2: % | F2: ФИО учителя
A3: участник | B3: Константинов Павел Леонидович | C3: МБОУ "Вохтомская ОШ" | D3: 14.5 | E3: =D3*100/48 -> 30 | F3: Гольцева О.В.
A4: участник | B4: Рудаков Максим Иванович | C4: МБОУ "Вохтомская ОШ" | D4: 12.5 | E4: 26 | F4: Гольцева О.В.
A5: участник | B5: Красильникова Дарья Юрьевна | C5: МБОУ "Вохтомская ОШ" | D5: 11 | E5: 23 | F5: Гольцева О.В.
A6: участник | B6: Гандзий Иоланта Николаевна | C6: МБОУ "Вохтомская ОШ" | D6: 10 | E6: 21 | F6: Гольцева О.В.
A7: победитель | B7: Вавилина Варвара Алексеевна | C7: МБОУ "Ерцевская СШ им. С.И. Бочарова" | D7: 30 | E7: 63 | F7: Черноусова Г.Д.
A8: победитель | B8: Змиевская Милана Александровна | C8: МБОУ "Ерцевская СШ им. С.И. Бочарова" | D8: 30 | E8: 63 | F8: Черноусова Г.Д.
A9: призер | B9: Малинина Елизавета Валерьевна | C9: МБОУ "Ерцевская СШ им. С.И. Бочарова" | D9: 26 | E9: 54 | F9: Черноусова Г.Д.
A10: призер | B10: Руссу Дарина Руслановна | C10: МБОУ "Ерцевская СШ им. С.И. Бочарова" | D10: 22 | E10: 46 | F10: Черноусова Г.Д.
A11: участник | B11: Малышкина Алиса Юрьевна | C11: МБОУ "Ерцевская СШ им. С.И. Бочарова" | D11: 18 | E11: 38 | F11: Черноусова Г.Д.
A12: участник | B12: Силичева Варвара Дмитриевна | C12: МБОУ "Ерцевская СШ им. С.И. Бочарова" | D12: 17.5 | E12: 36 | F12: Черноусова Г.Д.
A13: участник | B13: Виноградов Алексей Иванович | C13: МБОУ "Ерцевская СШ им. С.И. Бочарова" | D13: 8 | E13: 17 | F13: Черноусова Г.Д.
A14: участник | B14: Филиппова Даья Дмитриевна | C14: МБОУ "Коношеозерская СШ им. В.А.Корытова" | D14: 16 | E14: 33 | F14: Ефремычева Г.И.
A15: участник | B15: Хохлов Данил Михайлович | C15: МБОУ "Коношеозерская СШ им. В.А.Корытова" | D15: 14.5 | E15: 30 | F15: Ефремычева Г.И.
A16: участник | B16: Полозова Карина Александровна | C16: МБОУ "Коношеозерская СШ им. В.А.Корытова" | D16: 13 | E16: 27 | F16: Ефремычева Г.И.
A17: участник | B17: Шихов Матвей Владимирович | C17: МБОУ "Коношеозерская СШ им. В.А.Корытова" | D17: 12 | E17: 25 | F17: Ефремычева Г.И.
A18: участник | B18: Филиппова Татьяна Дмитриевна | C18: МБОУ "Коношеозерская СШ им. В.А.Корытова" | D18: 11 | E18: 23 | F18: Ефремычева Г.И.
A19: участник | B19: Илатовская София Алексеевна | C19: МБОУ "Коношеозерская СШ им. В.А.Корытова" | D19: 7 | E19: 15 | F19: Ефремычева Г.И.
A20: участник | B20: Купрейчик Тимур Владимирович | C20: МБОУ "Коношеозерская СШ им. В.А.Корытова" | D20: 1.5 | E20: 3 | F20: Ефремычева Г.И.
A21: участник | B21: Вараксина Альбина Александровна | C21: МБОУ "Коношская ОШ" | D21: 7.5 | E21: 16 | F21: Павлова А.Н.
A22: победитель | B22: Мельникова Алина Андреевна | C22: МБОУ "Коношская СШ имени Н.П. Лавёрова" | D22: 30.5 | E22: 64 | F22: Комотёсова Н.Н.
A23: призер | B23: Григорьева Варвара Алексеевна | C23: МБОУ "Коношская СШ имени Н.П. Лавёрова" | D23: 24 | E23: 50 | F23: Кузнецова Л.В.
A24: призер | B24: Горбачёва Алина Евгеньевна | C24: МБОУ "Коношская СШ имени Н.П. Лавёрова" | D24: 24 | E24: 50 | F24: Кузнецова Л.В.
A25: призер | B25: Гергедава Александра Кахаевна | C25: МБОУ "Коношская СШ имени Н.П. Лавёрова" | D25: 23 | E25: 48 | F25: Кузнецова Л.В.
A26: участник | B26: Ершов Илья Владимирович | C26: МБОУ "Коношская СШ имени Н.П. Лавёрова" | D26: 17.5 | E26: 36 | F26: Кузнецова Л.В.
A27: участник | B27: Наумов Марк Александрович | C27: МБОУ "Коношская СШ имени Н.П. Лавёрова" | D27: 17.5 | E27: 36 | F27: Кузнецова Л.В.
A28: участник | B28: Фомина Полина Александровна | C28: МБОУ "Коношская СШ имени Н.П. Лавёрова" | D28: 17.5 | E28: 36 | F28: Кузнецова Л.В.
A29: участник | B29: Филин Денис Сергеевич | C29: МБОУ "Коношская СШ имени Н.П. Лавёрова" | D29: 16.5 | E29: 34 | F29: Кузнецова Л.В.
A30: участник | B30: Тошова Ольга Шамшодовна | C30: МБОУ "Коношская СШ имени Н.П. Лавёрова" | D30: 16 | E30: 33 | F30: Власова Г.В.
A31: участник | B31: Волощенко Анастасия Сергеевна | C31: МБОУ "Коношская СШ имени Н.П. Лавёрова" | D31: 15.5 | E31: 32 | F31: Кузнецова Л.В.
A32: участник | B32: Рупосова Екатерина Юрьевна | C32: МБОУ "Коношская СШ имени Н.П. Лавёрова" | D32: 14 | E32: 29 | F32: Кузнецова Л.В.
A33: участник | B33: Лебедев Кирилл Алексеевич | C33: МБОУ "Коношская СШ имени Н.П. Лавёрова" | D33: 13.5 | E33: 28 | F33: Пальчикова А.А.
A34: участник | B34: Калинина Полина Алексеевна | C34: МБОУ "Коношская СШ имени Н.П. Лавёрова" | D34: 12.5 | E34: 26 | F34: Комртёсова Н.Н.
A35: участник | B35: Панарин Сергей Владимирович | C35: МБОУ "Коношская СШ имени Н.П. Лавёрова" | D35: 10 | E35: 21 | F35: Власова Г.В.
A36: участник | B36: Кузнецова София Михайловна | C36: МБОУ "Коношская СШ имени Н.П. Лавёрова" | D36: 10 | E36: 21 | F36: Кузнецова Л.В.
A37: победитель | B37: Быков Дмитрий Алексеевич | C37: МБОУ "Лесозаводская СШ" | D37: 26.5 | E37: 55 | F37: Ткаченко А.Н.
A38: победитель | B38: Решетникова Полина Михайловна | C38: МБОУ "Лесозаводская СШ" | D38: 24.5 | E38: 51 | F38: Ткаченко А.Н.
A39: победитель | B39: Кузьмина Агния Ивановна | C39: МБОУ "Лесозаводская СШ" | D39: 24 | E39: 50 | F39: Петрова Т.Н.
A40: участник | B40: Григорова Полина Александровна | C40: МБОУ "Лесозаводская СШ" | D40: 21 | E40: 44 | F40: Ткаченко А.Н.
A41: участник | B41: Дубонос Жанна Алексеевна | C41: МБОУ "Лесозаводская СШ" | D41: 20 | E41: 42 | F41: Петрова Т.Н.
A42: участник | B42: Кошкин Владислав Александрович | C42: МБОУ "Лесозаводская СШ" | D42: 19 | E42: 40 | F42: Ткаченко А.Н.
A43: участник | B43: Прибыткова Вероника Артёмовна | C43: МБОУ "Лесозаводская СШ" | D43: 18.5 | E43: 39 | F43: Ткаченко А.Н.
A44: участник | B44: Дербитцкий Денис Александрович | C44: МБОУ "Лесозаводская СШ" | D44: 17 | E44: 35 | F44: Петрова Т.Н. | G44: 48
A45: участник | B45: Кузнецова Анастасия Юрьевна | C45: МБОУ "Лесозаводская СШ" | D45: 16.5 | E45: 34 | F45: Петрова Т.Н.
A46: участник | B46: Смирнова Лидия Игоревна | C46: МБОУ "Лесозаводская СШ" | D46: 15.5 | E46: 32 | F46: Ткаченко А.Н.
A47: участник | B47: Перекипня Виктория Александровна | C47: МБОУ "Лесозаводская СШ" | D47: 6 | E47: 13 | F47: Петрова Т.Н.
A48: участник | B48: Симановский Артем Николаевич | C48: МБОУ "Подюжская СШ им. В.А. Абрамова" | D48: 17 | E48: 35 | F48: Быкова А.В.

Sheet 8 класс
B1: 8 класс Русский язык (школьный этап)
B2: Фамилия Имя и Отчество участника | C2: школа | D2: баллы | E2: % | F2: ФИО учителя | G2: макс кол-во баллов | H2: 48
A3: участник | B3: Вахрушин Сергей Денисович | C3: МБОУ "Вохтомская ОШ" | D3: 13.5 | E3: =D3*100/48 -> 28.125 | F3: Гольцева О.В.
A4: победитель | B4: Пронин Владимир Алексеевич | C4: МБОУ "Вохтомская ОШ" СП "Волошская ОШ" | D4: 28 | E4: =D4*100/48 -> 58.33333333 | F4: Пронина Е.И.
A5: участник | B5: Матюнин Роман Владимирович | C5: МБОУ "Вохтомская ОШ" СП "Волошская ОШ" | D5: 16 | E5: 33.33333333 | F5: Пронина Е.И.
A6: участник | B6: Зажигин Евгений Николаевич | C6: МБОУ "Вохтомская ОШ" СП "Волошская ОШ" | D6: 9.5 | E6: 19.79166667 | F6: Пронина Е.И.
A7: победитель | B7: Лопатина Варвара Викторовна | C7: МБОУ "Ерцевская СШ им. С.И. Бочарова" | D7: 36.5 | E7: 76.04166667 | F7: Каданцева Н.В.
A8: призер | B8: Архипова Полина Валентиновна | C8: МБОУ "Ерцевская СШ им. С.И. Бочарова" | D8: 36 | E8: 75 | F8: Каданцева Н.В.
A9: призер | B9: Сухнева Юлия Николаевна | C9: МБОУ "Ерцевская СШ им. С.И. Бочарова" | D9: 35.5 | E9: 73.95833333 | F9: Каданцева Н.В.
A10: призер | B10: Седалина Екатерина Александровна | C10: МБОУ "Ерцевская СШ им. С.И. Бочарова" | D10: 32.5 | E10: 67.70833333 | F10: Каданцева Н.В.
A11: призер | B11: Крылов Матвей Егорович | C11: МБОУ "Ерцевская СШ им. С.И. Бочарова" | D11: 22 | E11: 45.83333333 | F11: Каданцева Н.В.
A12: призер | B12: Рафиев Тамерлан Зафарович | C12: МБОУ "Ерцевская СШ им. С.И. Бочарова" | D12: 22 | E12: 45.83333333 | F12: Каданцева Н.В.
A13: участник | B13: Дерягина Маргарита Вячеславовна | C13: МБОУ "Ерцевская СШ им. С.И. Бочарова" | D13: 21 | E13: 43.75 | F13: Каданцева Н.В.
A14: участник | B14: Гришина София Сергеевна | C14: МБОУ "Ерцевская СШ им. С.И. Бочарова" | D14: 20.5 | E14: 42.70833333 | F14: Каданцева Н.В.
A15: участник | B15: Швецов Александр Олегович | C15: МБОУ "Ерцевская СШ им. С.И. Бочарова" | D15: 17.5 | E15: 36.45833333 | F15: Каданцева Н.В.
A16: участник | B16: Лобанова Полина Андреевна | C16: МБОУ "Климовская СШ" | D16: 16 | E16: 33.33333333 | F16: Пателина Е.М.
A17: победитель | B17: Замыцкий Михаил Евгеньевич | C17: МБОУ "Коношеозерская СШ им. В.А.Корытова" | D17: 27 | E17: 56.25 | F17: Ефремычева Г.И.
A18: призер | B18: Смирнов Александр Дмитриевич | C18: МБОУ "Коношеозерская СШ им. В.А.Корытова" | D18: 26 | E18: 54.16666667 | F18: Ефремычева Г.И.
A19: участник | B19: Носков Тимур Владиславович | C19: МБОУ "Коношеозерская СШ им. В.А.Корытова" | D19: 14.5 | E19: 30.20833333 | F19: Ефремычева Г.И.
A20: участник | B20: Ожигин Максим Владимирович | C20: МБОУ "Коношеозерская СШ им. В.А.Корытова" | D20: 14 | E20: 29.16666667 | F20: Ефремычева Г.И.
A21: участник | B21: Новоселов Степан Витаевич | C21: МБОУ "Коношеозерская СШ им. В.А.Корытова" | D21: 13 | E21: 27.08333333 | F21: Ефремычева Г.И.
A22: победитель | B22: Мишутина Милена Вячеславовна | C22: МБОУ "Коношская СШ имени Н.П. Лавёрова" | D22: 41 | E22: 85.41666667 | F22: Власова Г.В.
A23: призер | B23: Корнейчук Ульяна Михайловна | C23: МБОУ "Коношская СШ имени Н.П. Лавёрова" | D23: 34.5 | E23: 71.875 | F23: Власова Г.В.
A24: призер | B24: Лупандина Вероника Артемовна | C24: МБОУ "Коношская СШ имени Н.П. Лавёрова" | D24: 24.5 | E24: 51.04166667 | F24: Власова Г.В.
A25: призер | B25: Смирнова Софья Андреевна | C25: МБОУ "Коношская СШ имени Н.П. Лавёрова" | D25: 24 | E25: 50 | F25: Власова Г.В.
A26: призер | B26: Андрейчикова Вероника Алексеевна | C26: МБОУ "Коношская СШ имени Н.П. Лавёрова" | D26: 22.5 | E26: 46.875 | F26: Кузнецова Л.В.
A27: участник | B27: Закатов Леонид Сергеевич | C27: МБОУ "Коношская СШ имени Н.П. Лавёрова" | D27: 21.5 | E27: 44.79166667 | F27: Власова Г.В.
A28: участник | B28: Григорова Екатерина Михайловна | C28: МБОУ "Коношская СШ имени Н.П. Лавёрова" | D28: 20 | E28: 41.66666667 | F28: Власова Г.В.
A29: участник | B29: Корякина Елизавета Алексеевна | C29: МБОУ "Коношская СШ имени Н.П. Лавёрова" | D29: 18.5 | E29: 38.54166667 | F29: Кузнецова Л.В.
A30: участник | B30: Потягов Никита Романович | C30: МБОУ "Коношская СШ имени Н.П. Лавёрова" | D30: 18.5 | E30: 38.54166667 | F30: Власова Г.В.
A31: участник | B31: Ершова Анастасия Сергеевна | C31: МБОУ "Коношская СШ имени Н.П. Лавёрова" | D31: 18 | E31: 37.5 | F31: Кузнецова Л.В.
A32: участник | B32: Кузнецов Кирилл Русланович | C32: МБОУ "Коношская СШ имени Н.П. Лавёрова" | D32: 18 | E32: 37.5 | F32: Кузнецова Л.В.
A33: участник | B33: Румянцев Илья Владимирович | C33: МБОУ "Коношская СШ имени Н.П. Лавёрова" | D33: 17.5 | E33: 36.45833333 | F33: Власова Г.В.
A34: участник | B34: Ельцова Екатерина Алексеевна | C34: МБОУ "Коношская СШ имени Н.П. Лавёрова" | D34: 17 | E34: 35.41666667 | F34: Кузнецова Л.В.
A35: участник | B35: Алиева Зарина Хикмет кызы | C35: МБОУ "Коношская СШ имени Н.П. Лавёрова" | D35: 16.5 | E35: 34.375 | F35: Вилакова И.П
A36: участник | B36: Козенкова Софья Сергеевна | C36: МБОУ "Коношская СШ имени Н.П. Лавёрова" | D36: 14 | E36: 29.16666667 | F36: Кузнецова Л.В.
A37: участник | B37: Гриньков Евгений Сергеевич | C37: МБОУ "Коношская СШ имени Н.П. Лавёрова" | D37: 13.5 | E37: 28.125 | F37: Власова Г.В.
A38: участник | B38: Шушерин Николай Михайлович | C38: МБОУ "Коношская СШ имени Н.П. Лавёрова" | D38: 13.5 | E38: 28.125 | F38: Кузнецова Л.В.
A39: участник | B39: Куваев Степан Андреевич | C39: МБОУ "Коношская СШ имени Н.П. Лавёрова" | D39: 12.5 | E39: 26.04166667 | F39: Кузнецова Л.В.
A40: участник | B40: Лучкинская Елена Владимировна | C40: МБОУ "Коношская СШ имени Н.П. Лавёрова" | D40: 12 | E40: 25 | F40: Вилакова И.П.
A41: участник | B41: Иванов Дмитрий Васильевич | C41: МБОУ "Коношская СШ имени Н.П. Лавёрова" | D41: 10 | E41: 20.83333333 | F41: Вилакова И.П.
A42: участник | B42: Кокачев Климентий Васильевич | C42: МБОУ "Коношская СШ имени Н.П. Лавёрова" | D42: 6 | E42: 12.5 | F42: Кузнецова Л.В.
A43: участник | B43: Галашов Николай Васильевич | C43: МБОУ "Лесозаводская СШ" | D43: 20 | E43: 41.66666667 | F43: Ткаченко А.Н.
A44: участник | B44: Бобров Ярослав Владимирович | C44: МБОУ "Лесозаводская СШ" | D44: 19 | E44: 39.58333333 | F44: Дубонос С.Н.
A45: участник | B45: Решетова Каролина Романовна | C45: МБОУ "Лесозаводская СШ" | D45: 17 | E45: 35.41666667 | F45: Ткаченко А.Н.
A46: участник | B46: Брыкалова Мария Алексеевна | C46: МБОУ "Лесозаводская СШ" | D46: 15.5 | E46: 32.29166667 | F46: Ткаченко А.Н.
A47: участник | B47: Камададзе Майя Мамуковна | C47: МБОУ "Лесозаводская СШ" | D47: 11 | E47: 22.91666667 | F47: Ткаченко А.Н.
A48: участник | B48: Миронова Полина Николаевна | C48: МБОУ "Лесозаводская СШ" | D48: 11 | E48: 22.91666667 | F48: Ткаченко А.Н.
A49: участник | B49: Степина Анастасия Валерьевна | C49: МБОУ "Подюжская СШ им. В.А. Абрамова" | D49: 11.5 | E49: 23.95833333 | F49: Быкова А.В.

Sheet 9 класс
B1: 9 класс Русский язык (школьный этап)
B2: Фамилия Имя и Отчество участника | C2: школа | D2: баллы | E2: % | F2: ФИО учителя | G2: макс кол-во баллов | I2: 46
A3: участник | B3: Кочетков Даниил Алексеевич | C3: МБОУ "Вохтомская ОШ" | D3: 16 | E3: =D3*100/46 -> 35 | F3: Гольцева О.В.
A4: участник | B4: Ивашова Анна Сергеевна | C4: МБОУ "Вохтомская ОШ" | D4: 14 | E4: 30 | F4: Гольцева О.В.
A5: участник | B5: Эдиева Елизавета Турпаловна | C5: МБОУ "Вохтомская ОШ" | D5: 8 | E5: 17 | F5: Гольцева О.В.
A6: участник | B6: Шкрадюк Кирилл Владимирович | C6: МБОУ "Вохтомская ОШ" | D6: 5 | E6: 11 | F6: Гольцева О.В.
A7: участник | B7: Ожигин Дмитрий Александрович | C7: МБОУ "Вохтомская ОШ" СП "Волошская ОШ" | D7: 10 | E7: 22 | F7: Иванова Е.Н.
A8: участник | B8: Виноградов Михаил Максимовч | C8: МБОУ "Вохтомская ОШ" СП "Волошская ОШ" | D8: 8 | E8: 17 | F8: Иванова Е.Н.
A9: участник | B9: Артемов Михаил Сергеевич | C9: МБОУ "Вохтомская ОШ" СП "Волошская ОШ" | D9: 6 | E9: 13 | F9: Иванова Е.Н.
A10: участник | B10: Терехин Михаил Викторович | C10: МБОУ "Вохтомская ОШ" СП "Волошская ОШ" | D10: 5 | E10: 11 | F10: Иванова Е.Н.
A11: участник | B11: Уваров Денис Владимирович | C11: МБОУ "Вохтомская ОШ" СП "Волошская ОШ" | D11: 4.5 | E11: 10 | F11: Иванова Е.Н.
A12: участник | B12: Таранова Виктория Владимировна | C12: МБОУ "Ерцевская СШ им. С.И. Бочарова" | D12: 10 | E12: 22 | F12: Каданцева Н.В.
A13: участник | B13: Гуренко Дарья Александровна | C13: МБОУ "Ерцевская СШ им. С.И. Бочарова" | D13: 9 | E13: 20 | F13: Каданцева Н.В.
A14: участник | B14: Цыпленкова Олеся Константиновна | C14: МБОУ "Ерцевская СШ им. С.И. Бочарова" | D14: 9 | E14: 20 | F14: Каданцева Н.В.
A15: участник | B15: Руссу Дарья Руслановна | C15: МБОУ "Ерцевская СШ им. С.И. Бочарова" | D15: 8 | E15: 17 | F15: Каданцева Н.В.
A16: участник | B16: Ярошевич Дарья Евгеньевна | C16: МБОУ "Ерцевская СШ им. С.И. Бочарова" | D16: 8 | E16: 17 | F16: Каданцева Н.В.
A17: участник | B17: Иванова Полина Ивановна | C17: МБОУ "Ерцевская СШ им. С.И. Бочарова" | D17: 6.5 | E17: 14 | F17: Каданцева Н.В.
A18: участник | B18: Маурин Илья Николаевич | C18: МБОУ "Коношеозерская СШ им. В.А.Корытова" | D18: 5 | E18: 11 | F18: Ионина О.А.
A19: участник | B19: Мардвин Иван Павлович | C19: МБОУ "Коношеозерская СШ им. В.А.Корытова" | D19: 4.5 | E19: 10 | F19: Ионина О.А.
A20: участник | B20: Киселев Максим Александрович | C20: МБОУ "Коношеозерская СШ им. В.А.Корытова" | D20: 0.5 | E20: 1 | F20: Ионина О.А.
A21: призер | B21: Короткевич Елена Витальевна | C21: МБОУ "Коношская ОШ" | D21: 22 | E21: 48 | F21: Павлова А.Н.
A22: победитель | B22: Трофимов Александр Сергеевич | C22: МБОУ "Коношская СШ имени Н.П. Лавёрова" | D22: 24 | E22: 52 | F22: Комотёсова Н.Н.
A23: участник | B23: Семчук Софья Николаевна | C23: МБОУ "Коношская СШ имени Н.П. Лавёрова" | D23: 13 | E23: 28 | F23: Мерёжина Н.Н.
A24: участник | B24: Красов Арсений Сергеевич | C24: МБОУ "Коношская СШ имени Н.П. Лавёрова" | D24: 8 | E24: 17 | F24: Мерёжина Н.Н.
A25: участник | B25: Петлюк Екатерина Олеговна | C25: МБОУ "Коношская СШ имени Н.П. Лавёрова" | D25: 8 | E25: 17 | F25: Комотёсова Н.Н.
A26: участник | B26: Ермолин Максим Николаевич | C26: МБОУ "Коношская СШ имени Н.П. Лавёрова" | D26: 5.5 | E26: 12 | F26: Мерёжина Н.Н.
A27: участник | B27: Клименко Юлия Павловна | C27: МБОУ "Коношская СШ имени Н.П. Лавёрова" | D27: 5 | E27: 11 | F27: Комотёсова Н.Н.
A28: победитель | B28: Смирнова Милана Сергеевна | C28: МБОУ "Лесозаводская СШ" | D28: 27 | E28: 59 | F28: Ткаченко А.Н.
A29: участник | B29: Ракитина Дарья Владимировна | C29: МБОУ "Лесозаводская СШ" | D29: 15 | E29: 33 | F29: Ткаченко А.Н.
A30: участник | B30: Калинина Полина Максимовна | C30: МБОУ "Лесозаводская СШ" | D30: 13.5 | E30: 29 | F30: Ткаченко А.Н.
A31: участник | B31: Верещагина Юлия Сергеевна | C31: МБОУ "Лесозаводская СШ" | D31: 11.5 | E31: 25 | F31: Дубонос С.Н.
A32: участник | B32: Седунова Кристина Александровна | C32: МБОУ "Лесозаводская СШ" | D32: 10 | E32: 22 | F32: Ткаченко А.Н.
A33: участник | B33: Калинина Виктория Сергеевна | C33: МБОУ "Лесозаводская СШ" | D33: 8.5 | E33: 18 | F33: Ткаченко А.Н.
A34: призер | B34: Соколова Вероника Николаевна | C34: МБОУ "Подюжская СШ им. В.А. Абрамова" | D34: 21 | E34: 46 | F34: Корытова Е.М.
A35: участник | B35: Симановская Анастасия Алексеевна | C35: МБОУ "Подюжская СШ им. В.А. Абрамова" | D35: 15 | E35: 33 | F35: Корытова Е.М.
A36: участник | B36: Страшненкова София Александровна | C36: МБОУ "Подюжская СШ им. В.А. Абрамова" | D36: 15 | E36: 33 | F36: Корытова Е.М.

Sheet 10 класс
B1: 10 класс Русский язык (школьный этап)
B2: Фамилия Имя и Отчество участника | C2: школа | D2: баллы | E2: % | F2: ФИО учителя | G2: макс кол-во баллов | H2: 67
A3: участник | B3: Тарасова Милена Николаевна | C3: МБОУ "Ерцевская СШ им. С.И. Бочарова" | D3: 25.5 | E3: =D3*100/67 -> 38 | F3: Пугачева И.Г.
A4: участник | B4: Пашков Иван Сергеевич | C4: МБОУ "Ерцевская СШ им. С.И. Бочарова" | D4: 24.5 | E4: 37 | F4: Пугачева И.Г.
A5: участник | B5: Шахов Нкита Алексеевич | C5: МБОУ "Климовская СШ" | D5: 21 | E5: 31 | F5: Пателина Е.М.
A6: участник | B6: Мирхайдарова Анастасия Альбертовна | C6: МБОУ "Климовская СШ" | D6: 18 | E6: 27 | F6: Пателина Е.М.
A7: участник | B7: Попов Егор Алексеевич | C7: МБОУ "Коношеозерская СШ им. В.А.Корытова" | D7: 26 | E7: 39 | F7: Ионина О.А.
A8: участник | B8: Колесникович Карина Александровна | C8: МБОУ "Коношеозерская СШ им. В.А.Корытова" | D8: 22 | E8: 33 | F8: Ионина О.А.
A9: участник | B9: Шилова Светлана Александровна | C9: МБОУ "Коношеозерская СШ им. В.А.Корытова" | D9: 12.5 | E9: 19 | F9: Ионина О.А.
A10: победитель | B10: Юрьева Ксения Васильевна | C10: МБОУ "Коношская СШ имени Н.П. Лавёрова" | D10: 52.5 | E10: 78 | F10: Мерёжина Н.Н.
A11: призер | B11: Лукаш Анастасия Павловна | C11: МБОУ "Коношская СШ имени Н.П. Лавёрова" | D11: 34.5 | E11: 51 | F11: Мерёжина Н.Н.
A12: призер | B12: Куланин Матвей Андреевич | C12: МБОУ "Коношская СШ имени Н.П. Лавёрова" | D12: 30 | E12: 45 | F12: Мерёжина Н.Н.
A13: победитель | B13: Бобров Василий Иванович | C13: МБОУ "Лесозаводская СШ" | D13: 35 | E13: 52 | F13: Петрова Т.Н.
A14: призер | B14: Горчакова Алёна Александровна | C14: МБОУ "Лесозаводская СШ" | D14: 34 | E14: 51 | F14: Петрова Т.Н.
A15: участник | B15: Бурлака Алиса Алексеевна | C15: МБОУ "Лесозаводская СШ" | D15: 28 | E15: 42 | F15: Петрова Т.Н.

Sheet 11 класс
B1: 11 класс Русский язык (школьный этап)
B2: Фамилия Имя и Отчество участника | C2: школа | D2: баллы | E2: % | F2: ФИО учителя | G2: макс кол-во баллов | H2: 67
A3: участник | B3: Валуевич Арина Алексеевна | C3: МБОУ "Ерцевская СШ им. С.И. Бочарова" | D3: 28.5 | E3: =D3*100/67 -> 43 | F3: Пугачева И.Г.
A4: участник | B4: Бескровная Полина Сергеевна | C4: МБОУ "Ерцевская СШ им. С.И. Бочарова" | D4: 25 | E4: 37 | F4: Пугачева И.Г.
A5: участник | B5: Гахраманов Артур Шахларович | C5: МБОУ "Ерцевская СШ им. С.И. Бочарова" | D5: 22 | E5: 33 | F5: Пугачева И.Г.
A6: участник | B6: Козенкова Олеся Алексеевна | C6: МБОУ "Коношеозерская СШ им. В.А.Корытова" | D6: 21 | E6: 31 | F6: Ефремычева Г.И.
A7: участник | B7: Наумов Вячеслав Александрович | C7: МБОУ "Коношеозерская СШ им. В.А.Корытова" | D7: 19 | E7: 28 | F7: Ефремычева Г.И.
A8: победитель | B8: Васильева Карина Сергеевна | C8: МБОУ "Коношская СШ имени Н.П. Лавёрова" | D8: 40.5 | E8: 60 | F8: Мерёжина Н.Н.
A9: призер | B9: Ерина Арина Олеговна | C9: МБОУ "Коношская СШ имени Н.П. Лавёрова" | D9: 35 | E9: 52 | F9: Мерёжина Н.Н.
